{"text_format":"1","workbook":"xlsx","n_sheets":2,"sheets":["список сотрудников","Даты "],"not_rendered":{"charts":0,"images":2,"macros":0,"external_links":0,"defined_names":2,"comments":1,"pivot_tables":0},"unopened":[],"bounds":{"document_bytes":16777216,"sheet_cells":100000,"rows_first":2000,"rows_last":500,"rows_between":2000,"halvings":0,"cell_chars":16384,"cell_head_chars":4096},"cells_cut":0,"cells_raw":0,"read":"whole","date_system":"1900"}

{"sheet":"список сотрудников","index":0,"n_rows":14,"n_cols":1,"rows_kept":14,"cut":false,"hidden":false,"merged":[]}
["Группа 1"]
["Иванова "]
["Петрова "]
["Сидорова"]
["Морозова"]
["Группа 2"]
["Семенова"]
["Смолянова"]
["Артамонова"]
["Щеглова"]
["Отдел"]
["Шитова"]
["Миронов"]
["Андреев"]

{"sheet":"Даты ","index":1,"n_rows":32,"n_cols":3,"rows_kept":32,"cut":false,"hidden":false,"merged":[]}
["Дата","Фамилия","№ группы"]
[1,"Иванова ",{"$f":"LOOKUP(,-1/жир/(MATCH(B2,'список сотрудников'!A$1:A$99,)>ROW($1:$99)),'список сотрудников'!A$1:A$99)","v":"Группа 1"}]
[2,"Петрова ",{"$f":"LOOKUP(,-1/жир/(MATCH(B3,'список сотрудников'!A$1:A$99,)>ROW($1:$99)),'список сотрудников'!A$1:A$99)","v":"Группа 1"}]
[3,"Сидорова",{"$f":"LOOKUP(,-1/жир/(MATCH(B4,'список сотрудников'!A$1:A$99,)>ROW($1:$99)),'список сотрудников'!A$1:A$99)","v":"Группа 1"}]
[4,"Шитова",{"$f":"LOOKUP(,-1/жир/(MATCH(B5,'список сотрудников'!A$1:A$99,)>ROW($1:$99)),'список сотрудников'!A$1:A$99)","v":"Отдел"}]
[5,"Миронов",{"$f":"LOOKUP(,-1/жир/(MATCH(B6,'список сотрудников'!A$1:A$99,)>ROW($1:$99)),'список сотрудников'!A$1:A$99)","v":"Отдел"}]
[6,"Андреев",{"$f":"LOOKUP(,-1/жир/(MATCH(B7,'список сотрудников'!A$1:A$99,)>ROW($1:$99)),'список сотрудников'!A$1:A$99)","v":"Отдел"}]
[7,"Артамонова",{"$f":"LOOKUP(,-1/жир/(MATCH(B8,'список сотрудников'!A$1:A$99,)>ROW($1:$99)),'список сотрудников'!A$1:A$99)","v":"Группа 2"}]
[8,"Щеглова",{"$f":"LOOKUP(,-1/жир/(MATCH(B9,'список сотрудников'!A$1:A$99,)>ROW($1:$99)),'список сотрудников'!A$1:A$99)","v":"Группа 2"}]
[9,"Сидорова",{"$f":"LOOKUP(,-1/жир/(MATCH(B10,'список сотрудников'!A$1:A$99,)>ROW($1:$99)),'список сотрудников'!A$1:A$99)","v":"Группа 1"}]
[10,"Морозова",{"$f":"LOOKUP(,-1/жир/(MATCH(B11,'список сотрудников'!A$1:A$99,)>ROW($1:$99)),'список сотрудников'!A$1:A$99)","v":"Группа 1"}]
[11,"Шитова",{"$f":"LOOKUP(,-1/жир/(MATCH(B12,'список сотрудников'!A$1:A$99,)>ROW($1:$99)),'список сотрудников'!A$1:A$99)","v":"Отдел"}]
[12,"Миронов",{"$f":"LOOKUP(,-1/жир/(MATCH(B13,'список сотрудников'!A$1:A$99,)>ROW($1:$99)),'список сотрудников'!A$1:A$99)","v":"Отдел"}]
[13,"Андреев",{"$f":"LOOKUP(,-1/жир/(MATCH(B14,'список сотрудников'!A$1:A$99,)>ROW($1:$99)),'список сотрудников'!A$1:A$99)","v":"Отдел"}]
[14,"Артамонова",{"$f":"LOOKUP(,-1/жир/(MATCH(B15,'список сотрудников'!A$1:A$99,)>ROW($1:$99)),'список сотрудников'!A$1:A$99)","v":"Группа 2"}]
[15,"Щеглова",{"$f":"LOOKUP(,-1/жир/(MATCH(B16,'список сотрудников'!A$1:A$99,)>ROW($1:$99)),'список сотрудников'!A$1:A$99)","v":"Группа 2"}]
[16,"Сидорова",{"$f":"LOOKUP(,-1/жир/(MATCH(B17,'список сотрудников'!A$1:A$99,)>ROW($1:$99)),'список сотрудников'!A$1:A$99)","v":"Группа 1"}]
[17,"Смолянова",{"$f":"LOOKUP(,-1/жир/(MATCH(B18,'список сотрудников'!A$1:A$99,)>ROW($1:$99)),'список сотрудников'!A$1:A$99)","v":"Группа 2"}]
[18,"Шитова",{"$f":"LOOKUP(,-1/жир/(MATCH(B19,'список сотрудников'!A$1:A$99,)>ROW($1:$99)),'список сотрудников'!A$1:A$99)","v":"Отдел"}]
[19,"Миронов",{"$f":"LOOKUP(,-1/жир/(MATCH(B20,'список сотрудников'!A$1:A$99,)>ROW($1:$99)),'список сотрудников'!A$1:A$99)","v":"Отдел"}]
[20,"Андреев",{"$f":"LOOKUP(,-1/жир/(MATCH(B21,'список сотрудников'!A$1:A$99,)>ROW($1:$99)),'список сотрудников'!A$1:A$99)","v":"Отдел"}]
[21,"Смолянова",{"$f":"LOOKUP(,-1/жир/(MATCH(B22,'список сотрудников'!A$1:A$99,)>ROW($1:$99)),'список сотрудников'!A$1:A$99)","v":"Группа 2"}]
[22,"Смолянова",{"$f":"LOOKUP(,-1/жир/(MATCH(B23,'список сотрудников'!A$1:A$99,)>ROW($1:$99)),'список сотрудников'!A$1:A$99)","v":"Группа 2"}]
[23,"Шитова",{"$f":"LOOKUP(,-1/жир/(MATCH(B24,'список сотрудников'!A$1:A$99,)>ROW($1:$99)),'список сотрудников'!A$1:A$99)","v":"Отдел"}]
[24,"Миронов",{"$f":"LOOKUP(,-1/жир/(MATCH(B25,'список сотрудников'!A$1:A$99,)>ROW($1:$99)),'список сотрудников'!A$1:A$99)","v":"Отдел"}]
[25,"Андреев",{"$f":"LOOKUP(,-1/жир/(MATCH(B26,'список сотрудников'!A$1:A$99,)>ROW($1:$99)),'список сотрудников'!A$1:A$99)","v":"Отдел"}]
[26,"Смолянова",{"$f":"LOOKUP(,-1/жир/(MATCH(B27,'список сотрудников'!A$1:A$99,)>ROW($1:$99)),'список сотрудников'!A$1:A$99)","v":"Группа 2"}]
[27,"Смолянова",{"$f":"LOOKUP(,-1/жир/(MATCH(B28,'список сотрудников'!A$1:A$99,)>ROW($1:$99)),'список сотрудников'!A$1:A$99)","v":"Группа 2"}]
[28,"Смолянова",{"$f":"LOOKUP(,-1/жир/(MATCH(B29,'список сотрудников'!A$1:A$99,)>ROW($1:$99)),'список сотрудников'!A$1:A$99)","v":"Группа 2"}]
[29,"Артамонова",{"$f":"LOOKUP(,-1/жир/(MATCH(B30,'список сотрудников'!A$1:A$99,)>ROW($1:$99)),'список сотрудников'!A$1:A$99)","v":"Группа 2"}]
[30,"Щеглова",{"$f":"LOOKUP(,-1/жир/(MATCH(B31,'список сотрудников'!A$1:A$99,)>ROW($1:$99)),'список сотрудников'!A$1:A$99)","v":"Группа 2"}]
[31,"Сидорова",{"$f":"LOOKUP(,-1/жир/(MATCH(B32,'список сотрудников'!A$1:A$99,)>ROW($1:$99)),'список сотрудников'!A$1:A$99)","v":"Группа 1"}]